{"text_format":"1","workbook":"xlsx","n_sheets":2,"sheets":["отчет","форма"],"not_rendered":{"charts":0,"images":1,"macros":1,"external_links":0,"defined_names":82,"comments":0,"pivot_tables":0},"unopened":[],"bounds":{"document_bytes":16777216,"sheet_cells":100000,"rows_first":2000,"rows_last":500,"rows_between":2000,"halvings":0,"cell_chars":16384,"cell_head_chars":4096},"cells_cut":0,"cells_raw":0,"read":"whole","date_system":"1900"}

{"sheet":"отчет","index":0,"n_rows":1,"n_cols":4,"rows_kept":1,"cut":false,"hidden":false,"merged":[]}
[{"$f":"LEFT(RIGHT(CELL(\"имяфайла\"),LEN(CELL(\"имяфайла\"))-SEARCH(\"[\",CELL(\"имяфайла\"),1)),SEARCH(\".xlsm\",CELL(\"имяфайла\"),1)-SEARCH(\"[\",CELL(\"имяфайла\"),1)-1)","v":"Выполнение Эксперта 24 за ноябрь 2014 г"},null,null,"на сумму"]

{"sheet":"форма","index":1,"n_rows":108,"n_cols":5,"rows_kept":108,"cut":false,"hidden":false,"merged":[]}
["Наименование объекта","№ дог.","Тип","Сумма","Коллега"]
[null,null,null,{"$f":"SUM(E6:E76,E78:E108)","v":0}]
[]
["Вид работ, измерения, протоколы","Цена","Кол-во",null,"Стоимость"]
["СОУТ"]
["Подготовительные работы",null,null,{"$f":"IF(Коллега=\"один\",\"×1\",\"×0,5\")","v":"×0,5"},{"$f":"IF(Коллега=\"один\",B6*C6,B6*C6*0.5)","v":0}]
["Химфактор №1 измерение",null,null,"×1",{"$f":"B7*C7","v":0}]
["Химфактор №1 протокол",null,null,"×1",{"$f":"B8*C8","v":0}]
["Химфактор №2 измерение",null,null,"×1",0]
["Химфактор №2 протокол",null,null,"×1",0]
["Химфактор №3 измерение",null,null,"×1",0]
["Химфактор №3 протокол",null,null,"×1",0]
["Химфактор №4 измерение",null,null,"×1",0]
["Химфактор №4 протокол",null,null,"×1",0]
["Химфактор №5 измерение",null,null,"×1",0]
["Химфактор №5 протокол",null,null,"×1",0]
["Химфактор №6 измерение",null,null,"×1",0]
["Химфактор №6 протокол",null,null,"×1",0]
["Химфактор №7 измерение",null,null,"×1",0]
["Химфактор №7 протокол",null,null,"×1",0]
["Химфактор №8 измерение",null,null,"×1",0]
["Химфактор №8 протокол",null,null,"×1",0]
["Химфактор №9 измерение",null,null,"×1",0]
["Химфактор №9 протокол",null,null,"×1",0]
["Химфактор №10 измерение",null,null,"×1",0]
["Химфактор №10 протокол",null,null,"×1",0]
["Биологический фактор измерение",null,null,"×1",0]
["Биологический фактор протокол",null,null,"×1",0]
["АПФД1 измерение",null,null,"×1",0]
["АПФД1 протокол",null,null,"×1",0]
["АПФД2 измерение",null,null,"×1",0]
["АПФД2 протокол",null,null,"×1",0]
["АПФД3 измерение",null,null,"×1",0]
["АПФД3 протокол",null,null,"×1",0]
["АПФД4 измерение",null,null,"×1",0]
["АПФД4 протокол",null,null,"×1",0]
["АПФД5 измерение",null,null,"×1",0]
["АПФД5 протокол",null,null,"×1",0]
["Шум  измерение",null,null,"×1",0]
["Шум протокол",null,null,"×1",0]
["Инфразвук  измерение",null,null,"×1",0]
["Инфразвук протокол",null,null,"×1",0]
["Ультразвук воздушный измерение",null,null,"×1",0]
["Ультразвук воздушный протокол",null,null,"×1",0]
["Вибрация общая измерение",null,null,"×1",0]
["Вибрация общая протокол",null,null,"×1",0]
["Вибрация локальная измерение",null,null,"×1",0]
["Вибрация локальная протокол",null,null,"×1",0]
["ЭМП ПЭВМ измерение",null,null,"×1",0]
["ЭМП ПЭВМ протокол",null,null,"×1",0]
["ЭМП50 измерение",null,null,"×1",0]
["ЭМП50 протокол",null,null,"×1",0]
["ЭМП радиочастоты измерение",null,null,"×1",0]
["ЭМП радиочастоты протокол",null,null,"×1",0]
["Ионизир. излучения измерение",null,null,"×1",0]
["Ионизир. излучения протокол",null,null,"×1",0]
["Аэроионы измерение",null,null,"×1",0]
["Аэроионы протокол",null,null,"×1",0]
["Микроклимат измерение",null,null,"×1",0]
["Микроклимат протокол",null,null,"×1",0]
["Тепловое излучение измерение",null,null,"×1",0]
["Тепловое излучение протокол",null,null,"×1",0]
["Световая среда измерение",null,null,"×1",0]
["Световая среда протокол",null,null,"×1",0]
["УФИ измерение",null,null,"×1",0]
["УФИ протокол",null,null,"×1",0]
["Лазерное излучение измерение",null,null,"×1",0]
["Лазерное излучение протокол",null,null,"×1",0]
["Тяжесть ТП измерение",null,null,"×1",0]
["Тяжесть ТП протокол",null,null,"×1",0]
["Напряженность ТП измерение",null,null,"×1",0]
["Напряженность ТП протокол",null,null,"×1",{"$f":"B72*C72","v":0}]
["СИЗ измерение",null,null,"×1",0]
["СИЗ протокол",null,null,"×1",0]
["Оформление отчета 1 категории",null,null,"×1",0]
["Оформление отчета 2 категории",null,null,"×1",0]
["Производственный контроль"]
["Химфактор №1",null,null,"×1",{"$f":"B78*C78","v":0}]
["Химфактор №2",null,null,"×1",{"$f":"B79*C79","v":0}]
["Химфактор №3",null,null,"×1",0]
["Химфактор №4",null,null,"×1",0]
["Химфактор №5",null,null,"×1",0]
["Химфактор №6",null,null,"×1",0]
["Химфактор №7",null,null,"×1",0]
["Химфактор №8",null,null,"×1",0]
["Химфактор №9",null,null,"×1",0]
["Химфактор №10",null,null,"×1",0]
["АПФД1",null,null,"×1",0]
["АПФД2",null,null,"×1",0]
["АПФД3",null,null,"×1",0]
["АПФД4",null,null,"×1",0]
["АПФД5",null,null,"×1",0]
["Шум ",null,null,"×1",0]
["Инфразвук ",null,null,"×1",0]
["Ультразвук воздушный",null,null,"×1",0]
["Вибрация общая",null,null,"×1",0]
["Вибрация локальная",null,null,"×1",0]
["ЭМП ПЭВМ",null,null,"×1",0]
["ЭМП50",null,null,"×1",0]
["ЭМП радиочастоты",null,null,"×1",0]
["Ионизир. излучения",null,null,"×1",0]
["Аэроионы",null,null,"×1",0]
["Микроклимат теплый",null,null,"×1",0]
["Микроклимат холодный",null,null,"×1",0]
["Тепловое излучение",null,null,"×1",0]
["Световая среда",null,null,"×1",0]
["УФИ",null,null,"×1",0]
["Лазерное излучение",null,null,"×1",0]